Cogmind - Beta 17 @@@ ROGUE MODE // 2026.07.14 @ 02:35:51 Player: TheSkyeDoctor Result: Destroyed by S-43 Plague with Heavy Machine Gun Performance ------------- Evolutions (9) 4500 Regions Visited (17) 3400 Robots Destroyed (101) 505 Value Destroyed (3745) 3745 Prototype IDs (21) 420 Alien Tech Used (0) 0 Bonus (0) 0 TOTAL SCORE: 12570 Bonus ------- None Cogmind --------- Core Integrity 0/1600 Matter 145/300 Energy 25/340 System Corruption 6% Temperature Cool (0) Movement Flying (34) Location -1/Command Parts ------- > --- POWER (2) -------- Particle Reactor > --- PROPULSION (8) --- Impulse Thruster Array Cooled Q-thruster > --- UTILITY (11) ----- Advanced Coolant Injector Advanced Signal Interpreter Seismic Detector Core Analyzer Improved Hacking Suite > --- WEAPON (4) ------- (None) > --- INVENTORY (5) ---- Improved Matter Compressor (300) Advanced Thermal Shield Advanced Force Field Peak State ------------ > --- POWER ------------ Particle Reactor Quantum Reactor > --- PROPULSION ------- Advanced Surge Thruster Advanced Surge Thruster Cooled Field Propulsion Drive Cooled Field Propulsion Drive Cooled Field Propulsion Drive Cooled Field Propulsion Drive Q-thruster Cooled Q-thruster > --- UTILITY ---------- Advanced Heat Sink Experimental Coolant Injector Large Storage Unit Quantum Shading Machine Advanced Sensor Array Advanced Signal Interpreter Improved Targeting Computer Advanced Target Analyzer Core Analyzer Hacking Suite Improved Hacking Suite > --- WEAPON ----------- Heavy Dispersion Rifle > --- INVENTORY -------- Light Particle Reactor Impulse Thruster Array Cooled Q-thruster Cooled Q-thruster Coolant Network Improved Matter Compressor Advanced Reaction Control System Advanced Thermal Shield Advanced Force Field [Rating: 154] Favorites ----------- Power Micro Fission Core Engine Ion Engine Power Core Micro Fission Core Reactor Light Antimatter Reactor Propulsion Improved Flight Unit Treads Light Treads Flight Unit Improved Flight Unit Utility Improved Signal Interpreter Device Advanced Heat Sink Storage Medium Storage Unit Processor Improved Signal Interpreter Hackware Improved Hacking Suite Protection Makeshift Light Armor Plating Weapon Mini Assault Cannon Energy Gun Spread Laser Energy Cannon Advanced Plasma Cannon Ballistic Gun Heavy Machine Gun Ballistic Cannon Mini Assault Cannon Launcher Grenade Launcher Special Weapon Remote Datajack Impact Weapon Heavy Mace Slashing Weapon Ripper Special Melee Weapon Advanced Datajack Build | -11 -10 -9 -8 -7 -7 -7 -6 -6 -6 -5 -4 -4 -4 -3 -2 -1 -1 ------- Run | Yrd Mat Mat Mat Fac Low Low Fac Low Low Fac Fac Upp Upp Res Res Acc Com Slots Evolved 18 | . . 2 2 2 . . 2 . . 2 2 . . 2 2 2 . Power 1 | . . . . . . . 1 . . . . . . . . . . Propulsion 6 | . . . 2 1 . . . . . . 1 . . . . 2 . Utility 9 | . . 1 . 1 . . . . . 2 1 . . 2 2 . . Weapon 2 | . . 1 . . . . 1 . . . . . . . . . . Parts Attached 174 | 7 . 7 13 12 4 1 18 4 . 18 1 11 . 51 9 14 4 Power 28 | 1 . . 2 2 . . 4 . . 4 . 2 . 7 1 4 1 Engine 5 | 1 . . 1 . . . 2 . . . . . . . . 1 . Core 12 | . . . 1 2 . . 2 . . 4 . 2 . 1 . . . Reactor 11 | . . . . . . . . . . . . . . 6 1 3 1 Propulsion 51 | 2 . 1 7 3 . . 7 . . 4 . 3 . 13 3 7 1 Treads 10 | 2 . 1 3 . . . . . . . . . . 4 . . . Leg . | . . . . . . . . . . . . . . . . . . Wheel . | . . . . . . . . . . . . . . . . . . Hover . | . . . . . . . . . . . . . . . . . . Flight 41 | . . . 4 3 . . 7 . . 4 . 3 . 9 3 7 1 Utility 59 | 2 . 2 2 5 2 1 3 1 . 6 1 3 . 23 4 2 2 Device 30 | 1 . 1 2 2 1 . 1 1 . 4 . . . 11 4 . 2 Storage 8 | 1 . 1 . 1 . . . . . . 1 . . 4 . . . Processor 13 | . . . . 1 . 1 2 . . 2 . 1 . 5 . 1 . Hackware 6 | . . . . 1 . . . . . . . 1 . 3 . 1 . Protection 2 | . . . . . 1 . . . . . . 1 . . . . . Artifact . | . . . . . . . . . . . . . . . . . . Weapon 36 | 2 . 4 2 2 2 . 4 3 . 4 . 3 . 8 1 1 . Energy Gun 10 | 1 . 2 . . . . 1 1 . . . . . 4 . 1 . Energy Cannon 4 | . . 1 . . . . 1 . . 2 . . . . . . . Ballistic Gun 8 | 1 . 1 . 1 1 . . . . . . 1 . 3 . . . Ballistic Cannon 5 | . . . . 1 . . 2 1 . . . 1 . . . . . Launcher 1 | . . . 1 . . . . . . . . . . . . . . Special Weapon 1 | . . . . . . . . . . . . . . 1 . . . Impact Weapon 1 | . . . . . . . . . . 1 . . . . . . . Slashing Weapon 4 | . . . 1 . 1 . . 1 . . . 1 . . . . . Piercing Weapon . | . . . . . . . . . . . . . . . . . . Special Melee Weapon 2 | . . . . . . . . . . 1 . . . . 1 . . Unidentified Prototypes 19 | . . 2 1 3 . . 1 . . . . . . 8 3 1 . Parts Lost 117 | . . 1 16 4 4 . 13 1 2 12 . 15 7 13 3 26 . Power 21 | . . 1 3 . 1 . 1 1 1 3 . 1 2 2 . 5 . Propulsion 38 | . . . 6 2 . . 4 . . 4 . 6 1 2 . 13 . Utility 28 | . . . 2 1 3 . 2 . . 2 . 3 3 3 2 7 . Weapon 30 | . . . 5 1 . . 6 . 1 3 . 5 1 6 1 1 . Highest Loss Streak 22 | . . 1 9 3 3 . 5 1 2 9 . 8 5 3 2 22 . To Critical Strikes 2 | . . . . . . . . . . 1 . . . . . 1 . Average Backups 5 | 1 3 5 6 2 5 4 4 8 9 8 6 6 3 5 11 9 3 Power . | . 1 1 . . 1 . . . . . . . . . . 1 . Propulsion 1 | . . . 2 . . . 1 3 3 1 . . . 2 7 4 . Utility 2 | . 1 1 1 1 2 1 . 3 4 4 3 5 3 2 2 3 3 Weapon 1 | . 1 3 1 . 1 3 1 1 2 2 2 1 . . . . . Tool/Special . | . . . . . . . . . . . . . . . . . . Unused Backups 15 | . 1 . 1 1 . . 1 . . 3 . 1 . 2 3 1 1 Power 1 | . 1 . . . . . . . . . . . . . . . . Propulsion 6 | . . . 1 1 . . . . . . . . . 1 3 . . Utility 8 | . . . . . . . 1 . . 3 . 1 . 1 . 1 1 Weapon . | . . . . . . . . . . . . . . . . . . Tool/Special . | . . . . . . . . . . . . . . . . . . Average Slot Usage (%) 77 | . 100 96 80 78 88 99 82 77 79 83 71 78 54 70 82 71 21 Engine 2 | . 14 11 8 . . . 4 3 . . . . . . . . . Core 3 | . . . . 4 7 7 3 8 9 9 5 6 8 . . . . Reactor 1 | . . . . . . . . . . . . . . 7 7 6 . Treads 5 | . 28 22 19 . . . . . . . . . . 6 . . . Flight 17 | . . . . 37 38 38 31 33 33 27 21 17 4 5 26 27 6 Device 9 | . 14 18 17 7 10 6 2 4 6 8 10 6 4 9 17 14 3 Storage 7 | . 14 11 9 7 7 7 6 6 6 5 9 7 5 6 7 3 . Processor 10 | . . . . 6 7 14 14 13 13 18 15 15 14 12 15 13 8 Hackware 2 | . . . . 2 . . . . . . . 2 5 8 4 4 4 Protection 1 | . . . . . 3 . . . . . . 3 4 . . . . Energy Gun 3 | . 14 20 3 . . . 1 . . . . . . 5 . 1 . Energy Cannon 1 | . . 1 4 . . . 1 . . 2 4 4 4 . . . . Ballistic Gun 3 | . 14 11 8 2 . 7 1 . . . . 3 . 4 . . . Ballistic Cannon 2 | . . . . 6 7 7 11 1 6 5 4 3 . . . . . Slashing Weapon 1 | . . . 4 . 3 7 1 4 3 . . 3 . . . . . Peak Build Rating 154 | 7 7 14 19 39 48 46 66 65 60 79 69 89 50 132 140 154 65 Average Rating 58 | 5 7 11 14 32 41 45 52 54 51 66 68 72 47 96 132 125 40 On Entrance 41 | . 7 7 14 14 34 36 46 47 60 49 50 69 50 15 107 121 28 Avg Prop Armor Cover (%) 3 | . . . . . 2 . . . . . . . . 3 . . 14 Naked Turns . | . . . . . . . . . . . . . . . . . . Heaviest Build 77 | 15 15 27 27 25 35 28 43 34 34 50 39 57 40 71 71 77 20 Greatest Support 188 | 40 40 40 80 25 25 25 33 38 38 40 44 51 6 188 68 75 23 Greatest Overweight (x) 7 | . . . 5 1 1 1 2 . . 1 . 6 6 7 1 1 . Average Overweight (x) . | . . . . . . 1 . . . . . . 4 . . . . Largest Inventory Capacity 15 | 8 8 10 10 10 10 10 10 10 10 10 10 10 5 15 15 15 5 Average Capacity 9 | 7 8 8 10 10 10 10 10 10 10 10 10 7 5 8 15 14 5 Most Carried 15 | 3 4 9 9 5 8 7 10 10 10 10 8 10 3 15 15 15 5 Average Carried 6 | 1 3 5 6 1 5 5 5 8 8 8 5 6 3 6 14 11 4 Final Capacity 15 | 8 8 10 10 10 10 10 10 10 10 10 10 5 5 15 15 5 5 Final Carried 14 | 3 4 9 4 3 8 5 10 8 10 8 8 3 3 13 14 5 3 Class Distribution -------------------- 30% | Mutant 21% | Sprinter 10% | Scavenger-Gunner 9% | Gunner 8% | Scavenger-Mutant 6% | Hacker-Mutant 3% | Scientist-Gunner 3% | Scavenger-Sprinter Dominant Class ---------------- Mutant | -10/Materials Gunner | -9/Materials Scavenger-Mutant | -8/Materials Sprinter | -7/Factory Mutant | -7/Lower Caves Mutant | -7/Lower Caves Sprinter | -6/Factory Sprinter | -6/Lower Caves Sprinter | -6/Lower Caves Sprinter | -5/Factory Sprinter | -4/Factory Scientist-Gunner | -4/Upper Caves Mutant | -4/Upper Caves Scavenger-Gunner | -3/Research Scavenger-Mutant | -2/Research Sprinter | -1/Access Sprinter | -1/Command Resources | -11 -10 -9 -8 -7 -7 -7 -6 -6 -6 -5 -4 -4 -4 -3 -2 -1 -1 ----------- Run | Yrd Mat Mat Mat Fac Low Low Fac Low Low Fac Fac Upp Upp Res Res Acc Com Matter Collected 4075 | 294 . 174 247 523 210 . 179 264 . 33 . 554 151 1378 7 61 . Remotely 257 | . . . . . . . . . . . . 192 . 65 . . . Salvage Created 4034 | 202 . 415 925 326 294 . 214 . . . . 264 71 1276 . 47 . Parts 238 | 15 . 33 59 13 12 . 12 . . . . 15 . 75 . 4 . Haulers Intercepted 8 | . . 2 3 1 . . . . . . . . . 2 . . . Recyclers Shooed . | . . . . . . . . . . . . . . . . . . Parts Field Recycled . | . . . . . . . . . . . . . . . . . . Retrieved Matter . | . . . . . . . . . . . . . . . . . . Parts Self-Destructed 24 | . . . . . 11 . . 1 . . . 12 . . . . . Prevented 1 | . . . . . . . . . . . . . 1 . . . . Parts Restored . | . . . . . . . . . . . . . . . . . . Kills | -11 -10 -9 -8 -7 -7 -7 -6 -6 -6 -5 -4 -4 -4 -3 -2 -1 -1 ------- Run | Yrd Mat Mat Mat Fac Low Low Fac Low Low Fac Fac Upp Upp Res Res Acc Com Combat Hostiles Destroyed 75 | . . 11 15 8 6 . 7 . . . . 10 1 16 . 1 . Melee 5 | . . . 1 . 4 . . . . . . . . . . . . Guns 44 | . . 11 9 1 . . 2 . . . . 6 . 15 . . . Cannons 23 | . . . 4 7 2 . 5 . . . . 4 1 . . . . AOE 2 | . . . 1 . . . . . . . . . . . . 1 . Classes Destroyed 15 | 2 . 5 3 . 3 . 2 . . . . . . . . . . Builder 4 | . . . 3 . . . 1 . . . . . . . . . . Tunneler 5 | 4 . 1 . . . . . . . . . . . . . . . Hauler 8 | . . 2 3 1 . . . . . . . . . 2 . . . Recycler 2 | 1 . . 1 . . . . . . . . . . . . . . Mechanic 1 | . . . 1 . . . . . . . . . . . . . . Operator 1 | . . . . . . . 1 . . . . . . . . . . Watcher 5 | . . 1 3 . . . . . . . . . . 1 . . . Swarmer 24 | . . 6 3 . . . 3 . . . . 9 . 3 . . . Grunt 24 | . . 2 7 7 3 . 2 . . . . . . 3 . . . Brawler 1 | . . . . . 1 . . . . . . . . . . . . Duelist 3 | . . . 1 . 1 . 1 . . . . . . . . . . Sentry 11 | . . 3 4 1 . . . . . . . 1 . 2 . . . Hunter 2 | . . . . . 1 . . . . . . . 1 . . . . Programmer 10 | . . . . . . . 1 . . . . . . 8 . 1 . Decomposer 2 | . . . . . 2 . . . . . . . . . . . . Best Kill Streak 6 | 3 . 4 5 6 3 . 4 . . . . 4 1 2 . 1 . Combat Bots Only 5 | . . 4 5 5 3 . 3 . . . . 4 1 2 . 1 . Max Kills in Single Turn 2 | 1 . 1 2 1 1 . 1 . . . . 1 1 1 . 1 . Gunslinging . | . . . . . . . . . . . . . . . . . . Exploded 1 | . . . 1 . . . . . . . . . . . . 1 . Melee 1 | . . . 1 . 1 . . . . . . . . . . . . Uniques/NPCs Destroyed . | . . . . . . . . . . . . . . . . . . Combat | -11 -10 -9 -8 -7 -7 -7 -6 -6 -6 -5 -4 -4 -4 -3 -2 -1 -1 -------- Run | Yrd Mat Mat Mat Fac Low Low Fac Low Low Fac Fac Upp Upp Res Res Acc Com Hostile Shots Fired 1357 | . . 38 151 88 85 . 134 24 6 76 16 116 40 207 37 300 39 Missed 531 | . . 11 45 38 32 . 60 13 . 35 11 27 12 68 18 144 17 Hits 826 | . . 27 106 50 53 . 74 11 6 41 5 89 28 139 19 156 22 Melee 11 | . . . 1 3 5 . 1 . . 1 . . . . . . . Projectile 815 | . . 27 105 47 48 . 73 11 6 40 5 89 28 139 19 156 22 Critical Strikes 30 | . . . 6 1 . . 1 . . 4 . 3 1 9 . 4 1 Part Disruptions 1 | . . . . . . . . . . . . . . 1 . . . Damage Taken 15760 | . . 272 1715 572 714 . 1270 189 109 1125 99 1484 579 3311 265 3596 460 Core 4318 | . . 39 445 124 178 . 305 57 . 290 19 231 339 624 60 1382 225 Absorbed by Shields 164 | . . . . . . . . . . . . . . . 153 . 11 Core Remaining (%) 68 | 100 100 90 19 . . 56 . . 57 71 . . 48 52 95 . . Volleys Fired 290 | 8 2 27 45 42 17 . 24 . 1 6 . 28 9 73 . 8 . Largest 4 | 2 2 3 3 2 2 . 4 . 1 2 . 3 1 4 . 1 . Hottest 281 | 70 70 156 156 68 73 . 218 . 44 142 . 189 98 281 . 94 . Shots Fired 631 | 16 4 81 109 59 21 1 62 . 1 12 . 67 9 181 . 8 . Gun 405 | 16 4 77 68 17 3 . 14 . . . . 18 . 180 . 8 . Cannon 216 | . . 4 32 42 18 1 48 . 1 12 . 49 9 . . . . Launcher 9 | . . . 9 . . . . . . . . . . . . . . Special 1 | . . . . . . . . . . . . . . 1 . . . Kinetic 376 | 8 2 27 45 59 21 1 49 . 1 10 . 39 . 114 . . . Thermal 228 | 8 2 54 55 . . . 9 . . 2 . 28 9 53 . 8 . Explosive 9 | . . . 9 . . . . . . . . . . . . . . Electromagnetic 17 | . . . . . . . 4 . . . . . . 13 . . . Robot Hit Streak 17 | 6 7 8 17 11 7 1 3 . . 5 . 5 3 10 . 3 . Robot Miss Streak 8 | 2 3 8 8 3 1 . 6 . 1 1 . 7 1 4 . 2 . Penetration Max 1 | . . . . 1 . . . . . . . . . 1 . . . Secondary Targets 3 | . . 2 . . . . . . . . . . . 1 . . . Max Gunslinging Chain 1 | . . 1 . . . . . . . . . . . 1 . . . Shots Hit Robots 392 | 9 1 49 87 41 23 1 22 . . 17 . 26 6 100 5 5 . Core Hits 201 | 5 . 35 65 17 12 1 10 . . . . 11 1 43 . 1 . Critical Kills 4 | . . . . . . . . . . . . 1 . 3 . . . Critical Parts Destroyed 10 | . . . . 1 . . 1 . . 1 . 3 . 3 . 1 . Critical Strikes 29 | . . 2 1 7 2 . 1 . . 1 . 4 . 10 . 1 . Burn 5 | . . 2 . . . . . . . . . . . 3 . . . Destroy 15 | . . . . 1 . . 1 . . 1 . 4 . 7 . 1 . Blast 6 | . . . . 6 . . . . . . . . . . . . . Sever 3 | . . . 1 . 2 . . . . . . . . . . . . Melee Attacks 46 | . . . 17 . 10 . . . . 11 . 3 . . 5 . . Impact 1 | . . . . . . . . . . 1 . . . . . . . Slashing 30 | . . . 17 . 10 . . . . . . 3 . . . . . Piercing . | . . . . . . . . . . . . . . . . . . Sneak Attacks 11 | . . . 2 . . . . . . 5 . . . . 4 . . Combat Hostiles . | . . . . . . . . . . . . . . . . . . Follow-up Attacks . | . . . . . . . . . . . . . . . . . . Damage Inflicted 9593 | 109 12 649 1915 1032 603 30 758 . . 244 . 842 192 2702 . 505 . Guns 5061 | 109 12 608 716 294 63 . 124 . . . . 269 . 2702 . 164 . Cannons 2991 | . . 41 426 738 314 30 550 . . 244 . 456 192 . . . . Explosions 868 | . . . 443 . . . 84 . . . . . . . . 341 . Melee 673 | . . . 330 . 226 . . . . . . 117 . . . . . Ramming . | . . . . . . . . . . . . . . . . . . Kinetic 5093 | 46 . 215 442 1032 377 30 610 . . 211 . 369 . 1761 . . . Thermal 3188 | 63 12 434 700 . . . 124 . . 33 . 356 192 769 . 505 . Explosive 443 | . . . 443 . . . . . . . . . . . . . . Electromagnetic 196 | . . . . . . . 24 . . . . . . 172 . . . Impact . | . . . . . . . . . . . . . . . . . . Slashing 673 | . . . 330 . 226 . . . . . . 117 . . . . . Piercing . | . . . . . . . . . . . . . . . . . . Highest Corruption 19 | . . . . 2 2 2 2 2 2 1 . . . 19 . 6 6 Average Corruption 7 | . . . . 1 2 2 1 2 2 1 . . . 15 . 4 6 Corruption Purged . | . . . . . . . . . . . . . . . . . . Corruption Blocked . | . . . . . . . . . . . . . . . . . . Effects 100 | . . . . 2 15 3 3 2 . . . . . 68 . 5 2 Message Errors 21 | . . . . . 3 . 1 . . . . . . 14 . 3 . Matter Fused 21 | . . . . 1 5 1 . . . . . . . 13 . . 1 Heat Flow Errors 9 | . . . . . 3 . . . . . . . . 5 . 1 . Energy Discharges 7 | . . . . . 1 . . . . . . . . 5 . . 1 Parts Rejected 3 | . . . . 1 . . . . . . . . . 1 . 1 . Parts Fused 5 | . . . . . . . . 1 . . . . . 4 . . . Data Loss (minor) 13 | . . . . . 2 1 2 . . . . . . 8 . . . Data Loss (major) 1 | . . . . . . . . . . . . . . 1 . . . Misfires 4 | . . . . . 1 1 . . . . . . . 2 . . . Alerts 3 | . . . . . . . . 1 . . . . . 2 . . . Misdirections 4 | . . . . . . . . . . . . . . 4 . . . Weapon Failures 9 | . . . . . . . . . . . . . . 9 . . . Overload Shots . | . . . . . . . . . . . . . . . . . . Overflow Damage 345 | . . . 29 23 12 . 132 . . 30 . . . . . 119 . Projectiles 87 | . . . . 23 12 . 22 . . 30 . . . . . . . Explosions 244 | . . . 15 . . . 110 . . . . . . . . 119 . Melee 14 | . . . 14 . . . . . . . . . . . . . . Knockbacks 27 | . . . . 9 6 . 7 . . 4 . 1 . . . . . Impact . | . . . . . . . . . . . . . . . . . . Kinetic 25 | . . . . 8 6 . 6 . . 4 . 1 . . . . . Secondary 2 | . . . . 1 . . 1 . . . . . . . . . . Self-Inflicted Damage 151 | . . . 89 . . . 62 . . . . . . . . . . Shots 4 | . . . 3 . . . 1 . . . . . . . . . . Rammed . | . . . . . . . . . . . . . . . . . . Targets Rammed . | . . . . . . . . . . . . . . . . . . Kicked . | . . . . . . . . . . . . . . . . . . Crushed . | . . . . . . . . . . . . . . . . . . Highest Temperature 539 | 54 18 228 203 67 266 6 510 26 4 154 . 539 256 505 . 250 . Average Temperature 110 | 24 10 62 62 24 62 4 171 15 3 56 . 227 129 162 . 50 . Received Heat Transfer 2271 | . . 51 927 195 183 . 216 57 . 126 . 90 27 249 33 117 . Effects 30 | . . . . . . . 5 . . . . 20 . 5 . . . Shutdowns 8 | . . . . . . . 4 . . . . 2 . 2 . . . Energy Bleed 4 | . . . . . . . . . . . . 3 . 1 . . . Interference 12 | . . . . . . . . . . . . 12 . . . . . Matter Decay 1 | . . . . . . . . . . . . . . 1 . . . Short Circuit 2 | . . . . . . . 1 . . . . . . 1 . . . Damage (minor) 2 | . . . . . . . . . . . . 2 . . . . . Damage (major) 1 | . . . . . . . . . . . . 1 . . . . . Siege Activations . | . . . . . . . . . . . . . . . . . . Martial Activations . | . . . . . . . . . . . . . . . . . . Shielding Activations . | . . . . . . . . . . . . . . . . . . Robots Disrupted . | . . . . . . . . . . . . . . . . . . Combat Hostiles . | . . . . . . . . . . . . . . . . . . Robots Corrupted . | . . . . . . . . . . . . . . . . . . Combat Hostiles . | . . . . . . . . . . . . . . . . . . Parts Fried . | . . . . . . . . . . . . . . . . . . Impact Corruptions 1 | . . . . . . . 1 . . . . . . . . . . Robots Melted 2 | . . . . . . . . . . . . . . 2 . . . Combat Hostiles 1 | . . . . . . . . . . . . . . 1 . . . Parts Melted 12 | . . . . . . . . . . . . 2 4 6 . . . Heat Transferred 4979 | 185 37 971 1132 . . . 124 . . 50 . 550 300 1295 . 335 . Parts Sabotaged . | . . . . . . . . . . . . . . . . . . Parts Stolen . | . . . . . . . . . . . . . . . . . . Parts Stripped . | . . . . . . . . . . . . . . . . . . Power Chain Reactions . | . . . . . . . . . . . . . . . . . . Alert | -11 -10 -9 -8 -7 -7 -7 -6 -6 -6 -5 -4 -4 -4 -3 -2 -1 -1 ------- Run | Yrd Mat Mat Mat Fac Low Low Fac Low Low Fac Fac Upp Upp Res Res Acc Com Maximum Alert Level 2 | . . . 1 . . . 1 . . 1 . . . . . 2 1 Low Security (%) 90 | 100 100 100 76 100 . . 96 . . 90 100 . . 100 100 47 . Level 1 9 | . . . 23 . . . 3 . . 9 . . . . . 48 100 Level 2 . | . . . . . . . . . . . . . . . . 3 . Level 3 . | . . . . . . . . . . . . . . . . . . Level 4 . | . . . . . . . . . . . . . . . . . . Level 5 . | . . . . . . . . . . . . . . . . . . High Security . | . . . . . . . . . . . . . . . . . . Max Security . | . . . . . . . . . . . . . . . . . . Peak Influence 415 | 15 1 198 249 119 . . 221 . . 270 123 . . 198 109 415 321 Initial 272 | . . . 67 35 . . . . . 84 123 . . . 109 68 272 Average 84 | 2 . 92 155 26 . . 69 . . 32 106 . . 56 82 203 277 Influence Increases 4557 | 25 1 362 557 231 300 . 539 165 . 351 34 265 30 665 135 798 99 Destroy 0b10 Robot/C 1500 | . . 220 300 160 120 . 140 . . . . 200 20 320 . 20 . Destroy 0b10 Robot/NC 130 | 25 . 20 55 5 . . 10 . . . . . . 15 . . . Destroy Leader 336 | . . 46 82 22 30 . 30 . . . . 20 10 86 . 10 . Successful Hack 83 | . . . . 8 . . 14 . . . 4 . . 24 . 24 9 Disable Machine 90 | . . . 15 . . . 60 . . . . . . . . 15 . Destroy Structure 183 | . 1 1 60 6 . . 30 . . 6 . . . 10 . 69 . Partial Spotted 255 | . . . . . . . 30 . . 45 30 . . 60 15 45 30 Lose Combat Pursuer 1980 | . . 75 45 30 150 . 225 165 . 300 . 45 . 150 120 615 60 Influence Decreases 4236 | 25 1 201 640 207 394 8 336 176 58 233 199 352 30 470 216 486 204 Entered New Map 790 | . . . 94 43 39 2 . 76 38 50 129 33 . . 86 46 154 Time Decay 2417 | 25 1 191 386 116 315 6 206 90 . 57 70 234 30 360 100 180 50 Lost Part 937 | . . 10 160 40 40 . 130 10 20 42 . 85 . 110 30 260 . Purge Threat 92 | . . . . 8 . . . . . 84 . . . . . . . Squads Dispatched 25 | . 1 . 1 2 . . 2 . . 4 . . . 8 2 4 1 Investigation 3 | . . . . 1 . . . . . . . . . 1 . 1 . Extermination 12 | . . . . . . . 2 . . 2 . . . 5 . 2 1 Reinforcement 10 | . 1 . 1 1 . . . . . 2 . . . 2 2 1 . Assault . | . . . . . . . . . . . . . . . . . . Garrison . | . . . . . . . . . . . . . . . . . . Intercept . | . . . . . . . . . . . . . . . . . . Searches Triggered . | . . . . . . . . . . . . . . . . . . Construction Impeded 1 | . . . . . . . . . . 1 . . . . . . . Haulers Reinforced 2 | . . . . 1 . . . . . . . . . . . 1 . Active Scanning Responses . | . . . . . . . . . . . . . . . . . . Cargo Convoy Interrupts . | . . . . . . . . . . . . . . . . . . Stealth | -11 -10 -9 -8 -7 -7 -7 -6 -6 -6 -5 -4 -4 -4 -3 -2 -1 -1 --------- Run | Yrd Mat Mat Mat Fac Low Low Fac Low Low Fac Fac Upp Upp Res Res Acc Com Distress Signals 6 | . . 2 . . . . . . . . . . . 1 1 2 . Communications Jammed . | . . . . . . . . . . . . . . . . . . Distress Signals . | . . . . . . . . . . . . . . . . . . Times Spotted 297 | . 1 21 31 12 17 . 30 12 1 26 2 12 2 35 18 67 10 Peak Tracking Total 28 | . 1 6 5 4 5 . 9 8 1 17 2 5 1 8 12 28 6 Tactical Retreats 49 | . . 3 2 2 5 . 5 6 . 4 . 3 . 5 3 10 1 ECM-based Alert Blocks 1 | . . . . . . . . . . 1 . . . . . . . Traps | -11 -10 -9 -8 -7 -7 -7 -6 -6 -6 -5 -4 -4 -4 -3 -2 -1 -1 ------- Run | Yrd Mat Mat Mat Fac Low Low Fac Low Low Fac Fac Upp Upp Res Res Acc Com Traps Triggered 7 | . . . 1 . . . 2 . . 1 . . . 2 . 1 . Indirectly . | . . . . . . . . . . . . . . . . . . Trap Hack Attempts . | . . . . . . . . . . . . . . . . . . Triggered . | . . . . . . . . . . . . . . . . . . Disarmed . | . . . . . . . . . . . . . . . . . . Reprogrammed . | . . . . . . . . . . . . . . . . . . Reused . | . . . . . . . . . . . . . . . . . . Traps Extracted . | . . . . . . . . . . . . . . . . . . Installed . | . . . . . . . . . . . . . . . . . . Triggered . | . . . . . . . . . . . . . . . . . . Machines | -11 -10 -9 -8 -7 -7 -7 -6 -6 -6 -5 -4 -4 -4 -3 -2 -1 -1 ---------- Run | Yrd Mat Mat Mat Fac Low Low Fac Low Low Fac Fac Upp Upp Res Res Acc Com Machines Disabled 6 | . . . 1 . . . 4 . . . . . . . . 1 . Max in Single Turn 2 | . . . 1 . . . 2 . . . . . . . . 1 . Energy Cycler 1 | . . . . . . . . . . . . . . . . 1 . Machines Repaired . | . . . . . . . . . . . . . . . . . . Machines Dismantled . | . . . . . . . . . . . . . . . . . . Machines Sabotaged . | . . . . . . . . . . . . . . . . . . Overloaded Fab Kills . | . . . . . . . . . . . . . . . . . . Hacking | -11 -10 -9 -8 -7 -7 -7 -6 -6 -6 -5 -4 -4 -4 -3 -2 -1 -1 --------- Run | Yrd Mat Mat Mat Fac Low Low Fac Low Low Fac Fac Upp Upp Res Res Acc Com Machines Accessed 26 | . . . 1 2 1 . 3 . 1 3 3 . . 4 2 2 4 Terminals 17 | . . . 1 2 . . 1 . . 3 1 . . 3 1 1 4 Fabricators 1 | . . . . . . . 1 . . . . . . . . . . Repair Stations . | . . . . . . . . . . . . . . . . . . Recycling Units . | . . . . . . . . . . . . . . . . . . Scanalyzers 5 | . . . . . . . 1 . . . 2 . . 1 . 1 . Garrison Access 1 | . . . . . . . . . . . . . . . 1 . . Total Hacks 54 | . . . 1 6 1 . 9 . 1 6 11 . . 7 3 3 6 Successful 19 | . . . . 3 1 . 3 . 1 3 3 . . 2 . 2 1 Failed 33 | . . . 1 3 . . 5 . . 3 7 . . 5 3 1 5 Catastrophic 9 | . . . . 3 . . 1 . . 2 . . . 1 2 . . Database Lockouts 2 | . . . . . . . 1 . . . 1 . . . . . . Manual 19 | . . . 1 4 . . 3 . . . 3 . . 3 1 . 4 Terminals 31 | . . . 1 6 . . 3 . . 6 3 . . 4 1 1 6 Fabricators 3 | . . . . . . . 3 . . . . . . . . . . Repair Stations . | . . . . . . . . . . . . . . . . . . Recycling Units . | . . . . . . . . . . . . . . . . . . Scanalyzers 16 | . . . . . . . 3 . . . 8 . . 3 . 2 . Garrison Access 2 | . . . . . . . . . . . . . . . 2 . . Terminal Hacks 10 | . . . . 2 1 . . . 1 3 . . . 1 . 1 1 Prototype ID Bank 1 | . . . . 1 . . . . . . . . . . . . . Open Door 3 | . . . . . 1 . . . 1 . . . . . . 1 . Branch Access Points 1 | . . . . . . . . . . . . . . 1 . . . Alert Level 2 | . . . . . . . . . . 2 . . . . . . . Unreport Threat 2 | . . . . 1 . . . . . 1 . . . . . . . Disengage Seal 1 | . . . . . . . . . . . . . . . . . 1 Fabricator Hacks . | . . . . . . . . . . . . . . . . . . Repair Station Hacks . | . . . . . . . . . . . . . . . . . . Recycling Unit Hacks . | . . . . . . . . . . . . . . . . . . Scanalyzer 7 | . . . . . . . 2 . . . 3 . . 1 . 1 . Retrieve Study 7 | . . . . . . . 2 . . . 3 . . 1 . 1 . Garrison Access Hacks . | . . . . . . . . . . . . . . . . . . Unauthorized Hacks 2 | . . . . 1 . . 1 . . . . . . . . . . Terminals 2 | . . . . 1 . . 1 . . . . . . . . . . Botnet 2 | . . . . 1 . . 1 . . . . . . . . . . Fabricators . | . . . . . . . . . . . . . . . . . . Repair Stations . | . . . . . . . . . . . . . . . . . . Recycling Units . | . . . . . . . . . . . . . . . . . . Scanalyzers . | . . . . . . . . . . . . . . . . . . Garrison Access . | . . . . . . . . . . . . . . . . . . Data Cores Recovered 1 | . . . . . . . 1 . . . . . . . . . . Used . | . . . . . . . . . . . . . . . . . . Hacking Detections 20 | . . . 1 2 . . 2 . . 3 2 . . 4 2 1 3 Full Trace Events 1 | . . . . 1 . . . . . . . . . . . . . Feedback Events 1 | . . . . 1 . . . . . . . . . . . . . Corruption 1 | . . . . 1 . . . . . . . . . . . . . Feedback Blocked . | . . . . . . . . . . . . . . . . . . Robot Schematics Acquired . | . . . . . . . . . . . . . . . . . . Robots Built . | . . . . . . . . . . . . . . . . . . Authchips . | . . . . . . . . . . . . . . . . . . Time . | . . . . . . . . . . . . . . . . . . Total Robot Build Rating . | . . . . . . . . . . . . . . . . . . Part Schematics Acquired . | . . . . . . . . . . . . . . . . . . Parts Built . | . . . . . . . . . . . . . . . . . . Authchips . | . . . . . . . . . . . . . . . . . . Time . | . . . . . . . . . . . . . . . . . . Total Part Build Rating . | . . . . . . . . . . . . . . . . . . Part Studies Acquired 7 | . . . . . . . 2 . . . 3 . . 1 . 1 . Parts Repaired . | . . . . . . . . . . . . . . . . . . Time . | . . . . . . . . . . . . . . . . . . Parts Recycled . | . . . . . . . . . . . . . . . . . . Recycled Matter . | . . . . . . . . . . . . . . . . . . Retrieved Matter . | . . . . . . . . . . . . . . . . . . Retrieved Components . | . . . . . . . . . . . . . . . . . . Parts Scanalyzed . | . . . . . . . . . . . . . . . . . . Part Schematics Acquired . | . . . . . . . . . . . . . . . . . . Parts Damaged . | . . . . . . . . . . . . . . . . . . Bothacking | -11 -10 -9 -8 -7 -7 -7 -6 -6 -6 -5 -4 -4 -4 -3 -2 -1 -1 ------------ Run | Yrd Mat Mat Mat Fac Low Low Fac Low Low Fac Fac Upp Upp Res Res Acc Com Used RIF Installer . | . . . . . . . . . . . . . . . . . . Robots Hacked 10 | . . . . . . . . . . 6 . . . . 4 . . Non-combat 9 | . . . . . . . . . . 5 . . . . 4 . . Combat 1 | . . . . . . . . . . 1 . . . . . . . Robot Hacks Applied 13 | . . . . . . . . . . 8 . . . . 5 . . parse_system 6 | . . . . . . . . . . 3 . . . . 3 . . no_distress 3 | . . . . . . . . . . 3 . . . . . . . find_fabricator 2 | . . . . . . . . . . 1 . . . . 1 . . find_recycling 1 | . . . . . . . . . . 1 . . . . . . . find_station 1 | . . . . . . . . . . . . . . . 1 . . Relay Couplers Released . | . . . . . . . . . . . . . . . . . . Fabnet Peak Effective % . | . . . . . . . . . . . . . . . . . . Robots Rewired . | . . . . . . . . . . . . . . . . . . Allies Hacked . | . . . . . . . . . . . . . . . . . . Hacks Repelled . | . . . . . . . . . . . . . . . . . . Allies | -11 -10 -9 -8 -7 -7 -7 -6 -6 -6 -5 -4 -4 -4 -3 -2 -1 -1 -------- Run | Yrd Mat Mat Mat Fac Low Low Fac Low Low Fac Fac Upp Upp Res Res Acc Com Total Allies . | . . . . . . . . . . . . . . . . . . Largest Group . | . . . . . . . . . . . . . . . . . . Highest-Rated Group . | . . . . . . . . . . . . . . . . . . Highest-Rated Ally . | . . . . . . . . . . . . . . . . . . Total Orders . | . . . . . . . . . . . . . . . . . . Ally Attacks . | . . . . . . . . . . . . . . . . . . Total Damage . | . . . . . . . . . . . . . . . . . . Kills . | . . . . . . . . . . . . . . . . . . Allies Corrupted . | . . . . . . . . . . . . . . . . . . Allies Melted . | . . . . . . . . . . . . . . . . . . Intel | -11 -10 -9 -8 -7 -7 -7 -6 -6 -6 -5 -4 -4 -4 -3 -2 -1 -1 ------- Run | Yrd Mat Mat Mat Fac Low Low Fac Low Low Fac Fac Upp Upp Res Res Acc Com Active Infowar (turns) 4522 | 82 135 534 882 449 84 157 123 . . 177 24 315 543 654 29 292 42 Sensors 975 | . . . . . . . . . . . . . . 654 29 292 . Terrain 969 | . . . . 449 84 157 123 . . 156 . . . . . . . Seismic 1675 | 82 135 534 882 . . . . . . . . . . . . . 42 ECM 903 | . . . . . . . . . . 21 24 315 543 . . . . Robot Analysis Total . | . . . . . . . . . . . . . . . . . . Derelict Logs Recovered 5 | . . . . . 1 . . 2 . . . 1 1 . . . . Drone Launches . | . . . . . . . . . . . . . . . . . . Drone Recoveries . | . . . . . . . . . . . . . . . . . . Exploration | -11 -10 -9 -8 -7 -7 -7 -6 -6 -6 -5 -4 -4 -4 -3 -2 -1 -1 ------------- Run | Yrd Mat Mat Mat Fac Low Low Fac Low Low Fac Fac Upp Upp Res Res Acc Com Turns Passed 8824 | 186 135 534 907 451 1030 158 597 180 14 408 141 971 652 1782 203 366 109 Spaces Moved 9407 | 94 80 237 333 420 1080 122 832 691 39 872 400 1039 154 1346 356 1012 300 Core 182 | 1 . . 12 . . . . . . . . . 15 154 . . . Treads 1190 | 93 80 237 319 . . . . . . . . . . 461 . . . Legs . | . . . . . . . . . . . . . . . . . . Wheels . | . . . . . . . . . . . . . . . . . . Hover . | . . . . . . . . . . . . . . . . . . Flight 8035 | . . . 2 420 1080 122 832 691 39 872 400 1039 139 731 356 1012 300 Fastest Speed 14 | 50 160 160 31 27 27 97 20 25 25 25 29 28 100 29 23 14 30 Average Speed 72 | 158 160 160 194 28 87 97 53 25 25 36 29 79 412 103 46 17 31 Slowest Speed 515 | 160 160 160 300 101 101 97 169 25 25 105 29 515 515 400 92 82 34 Overloaded Moves 207 | . . . . . . . 56 . . 135 . . . . . 16 . Propulsion Burnouts 1 | . . . . . . . . . . 1 . . . . . . . Robots Hopped 101 | . . . . 2 . . 7 3 . 11 7 3 . 11 9 42 6 Potential Cave-ins . | . . . . . . . . . . . . . . . . . . Cave-ins Triggered . | . . . . . . . . . . . . . . . . . . Exploration Rate (%) 31 | 4 27 25 34 7 96 15 28 88 7 24 12 97 20 32 14 34 10 Regions Visited 17 Branch Regions 7 Pre-discovered Areas 1 | . . . . . . . . . . . . 1 . . . . . Known Exits Taken 13 | . . . . 1 1 1 1 1 1 1 1 1 1 1 1 1 . Unknown Exits Taken 4 | 1 1 1 1 . . . . . . . . . . . . . . Scrap Searched 11 | . . . . . 2 . . 4 . . . 5 . . . . . Spaces Dug . | . . . . . . . . . . . . . . . . . . Terrain Destroyed 152 | . . . 54 4 4 . 30 . . 2 . 26 3 8 . 21 . Melee . | . . . . . . . . . . . . . . . . . . Projectile 56 | . . . . 4 4 . 9 . . 2 . 26 3 8 . . . AOE 96 | . . . 54 . . . 21 . . . . . . . . 21 . Terrain Rammed . | . . . . . . . . . . . . . . . . . . Walls Destroyed . | . . . . . . . . . . . . . . . . . . Machines Disabled . | . . . . . . . . . . . . . . . . . . Actions | -11 -10 -9 -8 -7 -7 -7 -6 -6 -6 -5 -4 -4 -4 -3 -2 -1 -1 --------- Run | Yrd Mat Mat Mat Fac Low Low Fac Low Low Fac Fac Upp Upp Res Res Acc Com Total 10695 | 111 84 329 474 690 1131 161 923 693 41 939 417 1116 162 1574 391 1151 308 Wait 658 | . . 50 49 207 13 37 35 . . 18 17 29 . 42 8 147 6 Move 9216 | 93 79 236 332 415 1079 121 818 685 38 852 385 1032 153 1324 339 944 291 Hop 73 | . . . . 2 . . 6 2 . 8 7 3 . 10 7 25 3 Pick Up 90 | 3 2 5 7 4 5 . 9 . 2 11 4 4 . 20 11 2 1 Fast Attach 94 | 7 . 1 6 6 3 . 8 3 . 6 . 8 . 36 3 4 3 Attach 84 | . . 2 11 7 2 3 5 2 . 11 4 5 . 14 4 12 2 Detach 34 | . . . 1 3 1 . 3 1 . 3 . . . 17 2 2 1 Swap 39 | . . 6 2 2 1 . 8 . . 4 . 3 . 5 4 4 . Drop 56 | . 1 2 4 2 . . 7 . . 9 . 1 . 18 8 3 1 Fire 290 | 8 2 27 45 42 17 . 24 . 1 6 . 28 9 73 . 8 . Melee 46 | . . . 17 . 10 . . . . 11 . 3 . . 5 . . Ram . | . . . . . . . . . . . . . . . . . . Kick . | . . . . . . . . . . . . . . . . . . Crush . | . . . . . . . . . . . . . . . . . . Escape Stasis 15 | . . . . . . . . . . . . . . 15 . . . Rewire . | . . . . . . . . . . . . . . . . . . Trap . | . . . . . . . . . . . . . . . . . . Miscellaneous . | . . . . . . . . . . . . . . . . . . Route ------- -11/Scrapyard -10/Materials -9/Materials -8/Materials -7/Factory -7/Lower Caves -7/Lower Caves -6/Factory (discovered 4 exits: *Fac x2 / *Low x2) -6/Lower Caves -6/Lower Caves -5/Factory -4/Factory -4/Upper Caves -4/Upper Caves -3/Research (discovered 4 exits: *Res / Arm / Tes x2) -2/Research -1/Access -1/Command History --------- Turn | Location | Event 11 | -11/Scrapyard | Discovered new exit (range 15) 187 | -11/Scrapyard | Entered Materials 284 | -10/Materials | Discovered new exit (range 12) 301 | -10/Materials | Build established: Mutant 322 | -10/Materials | Entered another Materials area 322 | -9/Materials | Evolved 2 slots: Utility x1, Weapon x1 636 | -9/Materials | Build established: Gunner 852 | -9/Materials | Discovered new exit (range 4) 856 | -9/Materials | Entered another Materials area 856 | -8/Materials | Evolved 2 slots: Propulsion x2 1334 | -8/Materials | Lost 5 parts (3n2w) 1514 | -8/Materials | Build established: Scavenger-Mutant 1590 | -8/Materials | Discovered new exit (range 12) 1745 | -8/Materials | Core integrity fell below 50% 1761 | -8/Materials | Core integrity fell below 20% 1763 | -8/Materials | Entered Factory 1763 | -7/Factory | Evolved 2 slots: Propulsion x1, Utility x1 1786 | -7/Factory | Lost 9 parts (2p2n2u3w) 2009 | -7/Factory | Discovered new exit (range 16) 2064 | -7/Factory | Build established: Sprinter 2171 | -7/Factory | Lost 3 parts (1n1u1w) 2213 | -7/Factory | Identified exit to Lower Caves 2214 | -7/Factory | Entered Lower Caves 2257 | -7/Lower Caves | Entered a destroyed Warlord outpost 2277 | -7/Lower Caves | Learned 12 Factory zone layouts 2410 | -7/Lower Caves | Attracted the attention of an 0b10 checkpoint 2531 | -7/Lower Caves | Encountered a Warlord checkpoint 2566 | -7/Lower Caves | Build established: Mutant 3232 | -7/Lower Caves | Discovered new exit (range 10) 3243 | -7/Lower Caves | Identified exit to Lower Caves 3244 | -7/Lower Caves | Entered another Lower Caves area 3264 | -7/Lower Caves | Discovered new exit (range 7) 3275 | -7/Lower Caves | Lost 3 parts (1p2u) 3401 | -7/Lower Caves | Identified exit to Factory 3402 | -7/Lower Caves | Entered Factory 3402 | -6/Factory | Evolved 2 slots: Power x1, Weapon x1 3403 | -6/Factory | Identified exit to Factory 3403 | -6/Factory | Identified exit to Lower Caves 3562 | -6/Factory | Lost 5 parts (1p1n1u2w) 3606 | -6/Factory | Discovered exit to Lower Caves (range 16) 3745 | -6/Factory | Central database locked down 3786 | -6/Factory | Lost 3 parts (3w) 3999 | -6/Factory | Entered Lower Caves 4011 | -6/Lower Caves | Spotted B-75 Beast 4029 | -6/Lower Caves | Attracted the attention of an 0b10 outpost 4061 | -6/Lower Caves | Learned Factory garrison access intel 4080 | -6/Lower Caves | Identified exit to Lower Caves 4160 | -6/Lower Caves | Encountered a Warlord checkpoint 4172 | -6/Lower Caves | Build established: Sprinter 4179 | -6/Lower Caves | Entered another Lower Caves area 4182 | -6/Lower Caves | Discovered exit to Factory (range 13) 4193 | -6/Lower Caves | Entered Factory 4193 | -5/Factory | Evolved 2 slots: Utility x2 4194 | -5/Factory | Loaded intel: 4 garrison access locations 4585 | -5/Factory | Lost 9 parts (2p4n3w) 4593 | -5/Factory | Discovered new exit (range 16) 4598 | -5/Factory | Identified exit to Factory 4601 | -5/Factory | Entered another Factory area 4601 | -4/Factory | Evolved 2 slots: Propulsion x1, Utility x1 4727 | -4/Factory | Central database locked down 4740 | -4/Factory | Discovered new exit (range 7) 4742 | -4/Factory | Identified exit to Upper Caves 4742 | -4/Factory | Entered Upper Caves 4810 | -4/Upper Caves | Learned location of Armory (-3) 5010 | -4/Upper Caves | Lost 3 parts (1n2u) 5277 | -4/Upper Caves | Build established: Scientist-Gunner 5358 | -4/Upper Caves | Lost 8 parts (1p4n1u2w) 5498 | -4/Upper Caves | Attracted the attention of an 0b10 checkpoint 5564 | -4/Upper Caves | Discovered new exit (range 16) 5703 | -4/Upper Caves | Identified exit to Upper Caves 5713 | -4/Upper Caves | Entered another Upper Caves area 5827 | -4/Upper Caves | Build established: Mutant 6297 | -4/Upper Caves | Identified exit to Research 6341 | -4/Upper Caves | Spotted B-86 Titan 6355 | -4/Upper Caves | Core integrity fell below 50% 6365 | -4/Upper Caves | Entered Research 6365 | -3/Research | Evolved 2 slots: Utility x2 6385 | -3/Research | Lost 5 parts (1n3u1w) 6691 | -3/Research | Build established: Hacker-Mutant 6715 | -3/Research | Found Quantum Capacitor 6852 | -3/Research | System corruption reached 10% 7276 | -3/Research | Spotted B-86 Titan 7835 | -3/Research | Build established: Scavenger-Gunner 7958 | -3/Research | Found Prototype Processor 7976 | -3/Research | Identified Exp. Melee Analysis Suite 8111 | -3/Research | Lost 3 parts (1n1u1w) 8135 | -3/Research | Identified exit to Armory 8135 | -3/Research | Identified exit to Testing 8144 | -3/Research | Discovered new exit (range 5) 8147 | -3/Research | Identified exit to Research 8147 | -3/Research | Entered another Research area 8147 | -2/Research | Evolved 2 slots: Utility x2 8282 | -2/Research | Spotted B-90 Cyclops 8336 | -2/Research | Discovered new exit (range 12) 8339 | -2/Research | Identified exit to Access 8350 | -2/Research | Entered Access 8350 | -1/Access | Evolved 2 slots: Propulsion x2 8510 | -1/Access | Energy Cycler disabled 8548 | -1/Access | Spotted B-99 Colossus 8573 | -1/Access | Lost 4 parts (1p3n) 8669 | -1/Access | Core integrity fell below 50% 8699 | -1/Access | Core integrity fell below 20% 8703 | -1/Access | Spotted B-99 Colossus 8713 | -1/Access | Discovered new exit (range 10) 8716 | -1/Access | Identified exit to Command 8716 | -1/Access | Entered Command 8735 | -1/Command | Lost 22 parts (4p10n7u1w) 8750 | -1/Command | Disengaged cave seal 8798 | -1/Command | Spotted B-99 Colossus 8825 | -1/Command | Destroyed by S-43 Plague with Heavy Machine Gun Last Messages --------------- 08742_ Connecting with Cave Seal Controls... >>Control(Seal) Accessing seal controls... Disengaging subsurface cave network seal C539. Warning: Hostile activity detected below. 08751_ Connecting with Terminal... 08765_ Acquired Impulse Thruster Array. 08772_ Acquired Adv. Coolant Injector. 08783_ Acquired Seismic Detector. 08788_ System corrupted: Matter fused (-8). 08796_ ALERT: Potential suspicious activity detected, Programmers report to Command Zone 7U. 08799_ Slug penetrates Wall. 08799_ Dropped Coolant Network. 08800_ Acquired Particle Reactor. 08802_ Knocked back. 08802_ Penetrated by Slug. 08802_ Slug penetrates Wall. 08803_ R-10 Processor collects Coolant Network. Map ----- +----------------------------------------------------+ | ??????# ################??# # #? | | ??????# """" # #??# # "" #? | | ??????# """" # """ #??# # """" #? | | ??????# """" + """" #??# + """" #? | | ??????# "" # """" #??# # "" #? | | ??????# # ""T #??# # #? | | ??????# # #??# # #? | | ??????# ###############??# ###########? | | ??????# #?########???????# ######?????? | | ??????# % ### ######### # ] #?????? | | ??????# ## # # #?????? | | ??????# T" ## # # #?????? | | ??????# ##### "" ## # # #?????? | | ??????# ????# ## + + #?????? | | ??????# ?????######## ## # # #?????? | | ??????# ????????????### #### # # #?????? | | ??????#???????????????# ########### # #?????? | | ??????????????????????# # # # #?????? | | ??????????????????????# # =# ##+###?????? | | ??????????????????????# + [ # #???????? | | ??????????????????????# # # #???????? | | ??????????????????????# # # #???????? | | ??????????????????????# # # #######?? | | ??????????????????????#s ########### #?? | | ?????????????????????##ss##????????# ##### ### | | ?????????????????????# @########## #???# | | ?????????????????????# " #???# | | ?????????????????????# "T ####???# | | ?????????????????????# ##########/#######?# | | ????????????????????###+####### #?# ! | | ????????????????????# ## #?#% | | ????????????????????# ## #?# | | ????????????????????# ]## #?# * | | ????????????????????# ## #?# * | | ????????????????????# ## #?# | | ????????????????????########### #?#% | | ??????????????????????????????# #?# | | ??????????????????????????????# ### | | ??????????????????????????????# / | | ??????????????????????????????# ###""## | | ??????????????????????????????# #?####? | | ??????????????????????????????##############?????? | | ?????????????????????????????????????????????????? | | ?????????????????????????????????????????????????? | | | | | | | | | | | | | +----------------------------------------------------+ Best States ------------- Heat Dissipation 84 Coolant Potential 120 Energy Generation 45 Energy Capacity 1340 Matter Stores 300 Matter Capacity 300 Sight Range 16 Robot Scan Range 16 Terrain Scan Range 20 Terrain Scan Density 135 ECM Strength 2 Additional Mass Support 20 Armor Coverage 150 Weapon Cycling 15 Evasion (%) 67 Targeting Accuracy 8 Target Analysis 8 Core Analysis 6 Recoil Reduction 5 Matter Filtering 30 Kinecelleration 30 Offensive Hacking 22 Defensive Hacking 11 Item Schematics ----------------- None Robot Schematics ------------------ None Fabricated ------------ Nothing Repaired ---------- Nothing Studied --------- Lgt. Nuclear Core | -6/Factory | Hacked Hvy. Laser | -6/Factory | Hacked Mic. Fission Core | -4/Factory | Hacked Nuclear Pulse Array | -4/Factory | Hacked Nuclear Pulse Thruster | -4/Factory | Hacked Field Propulsion Drive | -3/Research | Hacked Adv. Surge Thruster | -1/Access | Hacked Alien Tech Used ----------------- None Achievements -------------- None Challenges ------------ None Game ------ Seed MolecularDecoderAxe Manual? 0 Play Time 01:33:27 Cumulative 122.1 hours Start 2026.07.14 @ 00:41:34 End 2026.07.14 @ 02:35:51 Sessions 1 Manual Loads 0 Difficulty Rogue Special Mode None Game No. 257 Rogue 257 Adventurer 0 Explorer 0 Win Type - Total 0 Types 0/0/0/0/0/0/0/0/0/0 Lore% 52 Gallery% 52 Achievement% 41 Wizard Run 0 Options --------- Layout 2 ASCII 0 Keyboard 1 Movement Arrows Keybinds 0 Fullscreen 1 Font 24/Smallcaps Map View 50x44 Zoom Use 0% Tactical HUD 1 Map Filters NONE Filters NONE Steam 1 RUN: bc3d3420-d476-43be-ab06-21c3b3992ae8